[Event "*** SCC Grand Prix: Titled Tuesday Blitz"]
[Site "Chess.com"]
[Date "2020.08.25"]
[Round "2"]
[White "Thee-Chessboy"]
[Black "Anton_Demchenko"]
[Result "0-1"]
[WhiteElo "2524"]
[BlackElo "2845"]
[TimeControl "180+1"]
[EndTime "10:21:22 PDT"]
[Termination "Anton_Demchenko won by resignation"]

1. d4 {[%clk 0:02:59.6]} 1... d5 {[%clk 0:02:57]} 2. c4 {[%clk 0:02:59.9]} 2...
dxc4 {[%clk 0:02:57.5]} 3. e3 {[%clk 0:02:58.8]} 3... e5 {[%clk 0:02:56.8]} 4.
Bxc4 {[%clk 0:02:57]} 4... exd4 {[%clk 0:02:57.1]} 5. exd4 {[%clk 0:02:56.5]}
5... Nf6 {[%clk 0:02:57.2]} 6. Nf3 {[%clk 0:02:55.3]} 6... Bd6 {[%clk
0:02:57.4]} 7. O-O {[%clk 0:02:55.1]} 7... O-O {[%clk 0:02:57.1]} 8. h3 {[%clk
0:02:54.5]} 8... h6 {[%clk 0:02:55.8]} 9. Re1 {[%clk 0:02:53.2]} 9... Nc6 {[%clk
0:02:55.4]} 10. Nc3 {[%clk 0:02:52.1]} 10... Bf5 {[%clk 0:02:45]} 11. a3 {[%clk
0:02:41.9]} 11... a6 {[%clk 0:02:34.7]} 12. b4 {[%clk 0:02:29.5]} 12... Re8
{[%clk 0:02:30.5]} 13. Be3 {[%clk 0:02:21.8]} 13... Qd7 {[%clk 0:02:22.6]} 14.
Bf1 {[%clk 0:01:57]} 14... Ne4 {[%clk 0:02:19]} 15. Rc1 {[%clk 0:01:54.5]} 15...
Nxc3 {[%clk 0:01:56.6]} 16. Rxc3 {[%clk 0:01:55.4]} 16... Be4 {[%clk 0:01:57.3]}
17. Nd2 {[%clk 0:01:40.6]} 17... Bd5 {[%clk 0:01:56.8]} 18. Bc4 {[%clk
0:01:27.8]} 18... Ne7 {[%clk 0:01:55.5]} 19. Qb3 {[%clk 0:01:17.1]} 19... c6
{[%clk 0:01:55.2]} 20. Nf3 {[%clk 0:01:10.8]} 20... Bxc4 {[%clk 0:01:52.3]} 21.
Qxc4 {[%clk 0:01:09]} 21... Nd5 {[%clk 0:01:53.2]} 22. Rcc1 {[%clk 0:01:05.2]}
22... a5 {[%clk 0:01:48.7]} 23. Bd2 {[%clk 0:00:55]} 23... axb4 {[%clk
0:01:43.2]} 24. axb4 {[%clk 0:00:51]} 24... Nc7 {[%clk 0:01:38.9]} 25. Ra1
{[%clk 0:00:43.2]} 25... Qf5 {[%clk 0:01:32]} 26. Rxa8 {[%clk 0:00:38.7]} 26...
Rxa8 {[%clk 0:01:32]} 27. Ne5 {[%clk 0:00:39.1]} 27... Re8 {[%clk 0:01:01.5]}
28. Bc3 {[%clk 0:00:22.9]} 28... Qe6 {[%clk 0:00:54.6]} 29. Qxe6 {[%clk
0:00:21.3]} 29... Rxe6 {[%clk 0:00:53]} 30. Nc4 {[%clk 0:00:21.3]} 30... Nb5
{[%clk 0:00:17.9]} 31. Rxe6 {[%clk 0:00:11.4]} 31... fxe6 {[%clk 0:00:18.8]} 32.
Bd2 {[%clk 0:00:09.9]} 32... Bc7 {[%clk 0:00:18.7]} 33. Be3 {[%clk 0:00:08.4]}
33... Kf7 {[%clk 0:00:19.2]} 34. Kf1 {[%clk 0:00:08.1]} 34... Ke7 {[%clk
0:00:18.7]} 35. Ke2 {[%clk 0:00:08.5]} 35... h5 {[%clk 0:00:19.2]} 36. Kd3
{[%clk 0:00:08.9]} 36... g6 {[%clk 0:00:19.4]} 37. g4 {[%clk 0:00:09]} 37...
hxg4 {[%clk 0:00:18.5]} 38. hxg4 {[%clk 0:00:09.9]} 38... Kf7 {[%clk 0:00:17.8]}
39. Kc2 {[%clk 0:00:09.1]} 39... Ke7 {[%clk 0:00:17.6]} 40. Kd3 {[%clk
0:00:09.2]} 40... Bd6 {[%clk 0:00:17.2]} 41. Na5 {[%clk 0:00:08.7]} 41... Bxb4
{[%clk 0:00:11.9]} 42. Nxb7 {[%clk 0:00:08.6]} 42... Kd7 {[%clk 0:00:12.8]} 43.
Kc4 {[%clk 0:00:07.2]} 43... Be7 {[%clk 0:00:11]} 44. Na5 {[%clk 0:00:06]} 44...
Bd8 {[%clk 0:00:10]} 45. Nb3 {[%clk 0:00:05.8]} 45... Bb6 {[%clk 0:00:10.3]} 46.
f4 {[%clk 0:00:05.6]} 46... Nd6+ {[%clk 0:00:09]} 47. Kd3 {[%clk 0:00:05.3]}
47... Ba7 {[%clk 0:00:09.6]} 48. Nd2 {[%clk 0:00:05]} 48... Bb8 {[%clk
0:00:08.5]} 49. Nf3 {[%clk 0:00:05.2]} 49... Nf7 {[%clk 0:00:08.3]} 50. Ne5+
{[%clk 0:00:05.2]} 50... Bxe5 {[%clk 0:00:08.6]} 51. dxe5 {[%clk 0:00:05.6]}
51... Nh6 {[%clk 0:00:05.7]} 52. f5 {[%clk 0:00:05]} 52... Nxg4 {[%clk
0:00:05.5]} 53. fxg6 {[%clk 0:00:04.9]} 53... Nxe5+ {[%clk 0:00:05.9]} 54. Ke4
{[%clk 0:00:05.3]} 54... Nxg6 {[%clk 0:00:06.8]} 55. Bc5 {[%clk 0:00:05.2]}
55... Ne7 {[%clk 0:00:07.4]} 56. Ke5 {[%clk 0:00:05.1]} 56... Nd5 {[%clk
0:00:07.9]} 57. Ke4 {[%clk 0:00:05.2]} 57... Nc3+ {[%clk 0:00:07.9]} 58. Ke3
{[%clk 0:00:05.1]} 58... Nb5 {[%clk 0:00:08.8]} 59. Ke4 {[%clk 0:00:05]} 59...
Nd6+ {[%clk 0:00:09]} 60. Ke5 {[%clk 0:00:05.1]} 60... Nb7 {[%clk 0:00:08.5]}
61. Ba3 {[%clk 0:00:04.6]} 61... Na5 {[%clk 0:00:08.3]} 62. Bb4 {[%clk
0:00:04.4]} 62... Nc4+ {[%clk 0:00:08]} 63. Kd4 {[%clk 0:00:04.6]} 63... Nb6
{[%clk 0:00:06.4]} 64. Bc5 {[%clk 0:00:04]} 64... Nd5 {[%clk 0:00:07.3]} 65. Ke5
{[%clk 0:00:04.1]} 65... Nc7 {[%clk 0:00:06.5]} 66. Kd4 {[%clk 0:00:04]} 66...
Na6 {[%clk 0:00:03.7]} 67. Ba3 {[%clk 0:00:03.5]} 67... Nb8 {[%clk 0:00:03.3]}
68. Ke5 {[%clk 0:00:02.8]} 68... Na6 {[%clk 0:00:03.2]} 69. Kd4 {[%clk
0:00:02.5]} 69... Nc7 {[%clk 0:00:03.5]} 70. Ke5 {[%clk 0:00:02.7]} 70... Nb5
{[%clk 0:00:04.4]} 71. Bc5 {[%clk 0:00:03.2]} 71... Nc3 {[%clk 0:00:05.1]} 72.
Kd4 {[%clk 0:00:03.7]} 72... Nd1 {[%clk 0:00:05.8]} 73. Bb4 {[%clk 0:00:03.4]}
73... Nf2 {[%clk 0:00:05.4]} 74. Ke5 {[%clk 0:00:03.7]} 74... Nd3+ {[%clk
0:00:05.6]} 75. Kd4 {[%clk 0:00:04]} 75... Nxb4 {[%clk 0:00:06.5]} 0-1

[Event "*** SCC Grand Prix: Titled Tuesday Blitz"]
[Site "Chess.com"]
[Date "2020.08.25"]
[Round "2"]
[White "mattcolins2025"]
[Black "Speshka"]
[Result "1-0"]
[WhiteElo "2453"]
[BlackElo "2241"]
[TimeControl "180+1"]
[EndTime "10:21:28 PDT"]
[Termination "mattcolins2025 won by resignation"]

1. d4 {[%clk 0:03:00.9]} 1... f5 {[%clk 0:02:59.3]} 2. Nf3 {[%clk 0:03:00.7]}
2... Nf6 {[%clk 0:02:58.5]} 3. g3 {[%clk 0:03:00.7]} 3... g6 {[%clk 0:02:58.6]}
4. Bg2 {[%clk 0:03:01.1]} 4... Bg7 {[%clk 0:02:58.7]} 5. O-O {[%clk 0:03:01.5]}
5... O-O {[%clk 0:02:59.5]} 6. b3 {[%clk 0:03:02.1]} 6... d6 {[%clk 0:02:58.4]}
7. Bb2 {[%clk 0:03:02.8]} 7... Qe8 {[%clk 0:02:57.1]} 8. c4 {[%clk 0:03:02.9]}
8... Nbd7 {[%clk 0:02:51.2]} 9. Qc2 {[%clk 0:02:58]} 9... e5 {[%clk 0:02:40.8]}
10. dxe5 {[%clk 0:02:53.9]} 10... dxe5 {[%clk 0:02:41.7]} 11. Nbd2 {[%clk
0:02:52.9]} 11... e4 {[%clk 0:02:34.9]} 12. Nd4 {[%clk 0:02:51.8]} 12... a6
{[%clk 0:02:26.6]} 13. c5 {[%clk 0:02:43.5]} 13... Ne5 {[%clk 0:02:20.8]} 14.
Nc4 {[%clk 0:02:41.2]} 14... Nxc4 {[%clk 0:02:17.3]} 15. Qxc4+ {[%clk
0:02:40.3]} 15... Kh8 {[%clk 0:02:16]} 16. Rac1 {[%clk 0:02:38.5]} 16... Bd7
{[%clk 0:02:01.4]} 17. Rfd1 {[%clk 0:02:35.6]} 17... Bb5 {[%clk 0:01:52.8]} 18.
Qc2 {[%clk 0:02:33.6]} 18... Rd8 {[%clk 0:01:48.2]} 19. a4 {[%clk 0:02:32.2]}
19... Bd7 {[%clk 0:01:46.2]} 20. e3 {[%clk 0:02:26]} 20... Nd5 {[%clk
0:01:38.3]} 21. Qb1 {[%clk 0:02:11.6]} 21... Nb4 {[%clk 0:01:35.1]} 22. Bf1
{[%clk 0:02:08.6]} 22... Nc6 {[%clk 0:01:22.6]} 23. Qa1 {[%clk 0:02:03.4]} 23...
Ne5 {[%clk 0:01:10.6]} 24. Be2 {[%clk 0:01:50.6]} 24... Bc8 {[%clk 0:01:06.6]}
25. Rd2 {[%clk 0:01:41.6]} 25... Qf7 {[%clk 0:00:59.7]} 26. Rcd1 {[%clk
0:01:39.4]} 26... Rfe8 {[%clk 0:00:55.5]} 27. c6 {[%clk 0:01:18.2]} 27... bxc6
{[%clk 0:00:52.6]} 28. Bc3 {[%clk 0:01:06.9]} 28... c5 {[%clk 0:00:51.6]} 29.
Nc2 {[%clk 0:01:06.2]} 29... Rxd2 {[%clk 0:00:48.7]} 30. Rxd2 {[%clk 0:01:06]}
30... Nc6 {[%clk 0:00:33.4]} 31. Bc4 {[%clk 0:01:02.1]} 31... Qf8 {[%clk
0:00:32.2]} 32. Bd5 {[%clk 0:00:55.1]} 32... Ne5 {[%clk 0:00:31.2]} 33. Ne1
{[%clk 0:00:52]} 33... c6 {[%clk 0:00:25.2]} 34. Bc4 {[%clk 0:00:52.1]} 34...
Nxc4 {[%clk 0:00:23.4]} 35. bxc4 {[%clk 0:00:53]} 35... Be6 {[%clk 0:00:22.3]}
36. Bxg7+ {[%clk 0:00:50.3]} 36... Qxg7 {[%clk 0:00:23.2]} 37. Qxg7+ {[%clk
0:00:50.7]} 37... Kxg7 {[%clk 0:00:23.4]} 38. Rd6 {[%clk 0:00:51.2]} 38... Bxc4
{[%clk 0:00:21.4]} 39. Rxc6 {[%clk 0:00:51.4]} 39... Re5 {[%clk 0:00:16.9]} 40.
Ng2 {[%clk 0:00:48.2]} 40... Bb3 {[%clk 0:00:16]} 41. a5 {[%clk 0:00:47.8]}
41... c4 {[%clk 0:00:15.6]} 42. Nf4 {[%clk 0:00:47.5]} 42... c3 {[%clk 0:00:15]}
43. Rxc3 {[%clk 0:00:47.2]} 43... Bf7 {[%clk 0:00:14.1]} 44. Ra3 {[%clk
0:00:44.6]} 44... Rb5 {[%clk 0:00:13.9]} 45. h4 {[%clk 0:00:44.4]} 45... h6
{[%clk 0:00:13.4]} 46. Ne2 {[%clk 0:00:43.7]} 46... g5 {[%clk 0:00:13.2]} 47.
hxg5 {[%clk 0:00:43.4]} 47... hxg5 {[%clk 0:00:12.9]} 48. Nd4 {[%clk 0:00:44.3]}
48... Rb1+ {[%clk 0:00:12.9]} 49. Kg2 {[%clk 0:00:44.2]} 49... Kf6 {[%clk
0:00:13.8]} 50. Rc3 {[%clk 0:00:43.4]} 50... Bd5 {[%clk 0:00:10.1]} 51. Rc5
{[%clk 0:00:42.2]} 51... Bb7 {[%clk 0:00:07.8]} 52. Rxf5+ {[%clk 0:00:40.9]}
52... Kg6 {[%clk 0:00:07.6]} 53. Rc5 {[%clk 0:00:41.1]} 53... Ra1 {[%clk
0:00:06.2]} 54. Ne6 {[%clk 0:00:38.3]} 54... Kf6 {[%clk 0:00:05.5]} 55. Nxg5
{[%clk 0:00:34.5]} 55... Rb1 {[%clk 0:00:05.3]} 56. Nh3 {[%clk 0:00:33.1]} 56...
Rb4 {[%clk 0:00:04.6]} 57. Nf4 {[%clk 0:00:32.7]} 57... Rb5 {[%clk 0:00:04.8]}
58. Rc7 {[%clk 0:00:30.5]} 58... Ba8 {[%clk 0:00:03.8]} 59. Ra7 {[%clk
0:00:29.7]} 59... Bb7 {[%clk 0:00:03.8]} 60. g4 {[%clk 0:00:29.4]} 60... Ke5
{[%clk 0:00:03.7]} 61. g5 {[%clk 0:00:29]} 61... Kd6 {[%clk 0:00:04.6]} 62. g6
{[%clk 0:00:29.3]} 62... Kc7 {[%clk 0:00:03.7]} 63. g7 {[%clk 0:00:21.4]} 63...
Rg5+ {[%clk 0:00:02.7]} 64. Kh3 {[%clk 0:00:21.7]} 64... Rxg7 {[%clk 0:00:03.6]}
65. Ne6+ {[%clk 0:00:21.9]} 65... Kb8 {[%clk 0:00:02.8]} 66. Nxg7 {[%clk
0:00:22]} 66... Kxa7 {[%clk 0:00:02.7]} 67. Kg4 {[%clk 0:00:22.3]} 67... Kb8
{[%clk 0:00:02.7]} 68. Kf4 {[%clk 0:00:22.5]} 68... Kc7 {[%clk 0:00:02.9]} 69.
Nf5 {[%clk 0:00:22.9]} 69... Kc6 {[%clk 0:00:02.8]} 70. Nd4+ {[%clk 0:00:22.7]}
70... Kc5 {[%clk 0:00:02.3]} 71. Ne6+ {[%clk 0:00:20.1]} 71... Kb4 {[%clk
0:00:03.2]} 72. Nd8 {[%clk 0:00:20.1]} 72... Ba8 {[%clk 0:00:02.5]} 73. Ne6
{[%clk 0:00:19.9]} 73... Kxa5 {[%clk 0:00:03]} 74. Nc7 {[%clk 0:00:20.1]} 74...
Kb6 {[%clk 0:00:02.8]} 75. Nxa8+ {[%clk 0:00:20]} 75... Kb7 {[%clk 0:00:03.1]}
76. Kxe4 {[%clk 0:00:20.5]} 76... Kxa8 {[%clk 0:00:03.1]} 77. Kd5 {[%clk
0:00:21]} 77... Kb7 {[%clk 0:00:03.7]} 78. Kc5 {[%clk 0:00:21.5]} 78... Kc7
{[%clk 0:00:04.6]} 79. f4 {[%clk 0:00:21.5]} 79... Kd7 {[%clk 0:00:03.9]} 80. e4
{[%clk 0:00:21.7]} 80... Ke6 {[%clk 0:00:04.8]} 81. Kb6 {[%clk 0:00:21.5]} 81...
a5 {[%clk 0:00:05.7]} 82. Kxa5 {[%clk 0:00:21.8]} 82... Kf6 {[%clk 0:00:06.6]}
83. Kb5 {[%clk 0:00:22.1]} 83... Ke6 {[%clk 0:00:07.5]} 84. Kc5 {[%clk 0:00:23]}
84... Kf6 {[%clk 0:00:07.9]} 85. Kd6 {[%clk 0:00:23.3]} 85... Kf7 {[%clk
0:00:07.8]} 86. e5 {[%clk 0:00:23.5]} 86... Ke8 {[%clk 0:00:07.8]} 87. e6 {[%clk
0:00:23.8]} 87... Kf8 {[%clk 0:00:08.1]} 88. f5 {[%clk 0:00:23.8]} 1-0

[Event "*** SCC Grand Prix: Titled Tuesday Blitz"]
[Site "Chess.com"]
[Date "2020.08.25"]
[Round "2"]
[White "Koksik_13"]
[Black "colegiodemadrid"]
[Result "1-0"]
[WhiteElo "2661"]
[BlackElo "2404"]
[TimeControl "180+1"]
[EndTime "10:21:38 PDT"]
[Termination "Koksik_13 won by resignation"]

1. e4 {[%clk 0:03:00.7]} 1... c6 {[%clk 0:02:58.4]} 2. d4 {[%clk 0:02:59.2]}
2... d5 {[%clk 0:02:58.1]} 3. f3 {[%clk 0:03:00.1]} 3... e6 {[%clk 0:02:53.9]}
4. Nc3 {[%clk 0:03:00.1]} 4... Nf6 {[%clk 0:02:54.2]} 5. e5 {[%clk 0:02:59.2]}
5... Nfd7 {[%clk 0:02:53.9]} 6. f4 {[%clk 0:03:00.1]} 6... c5 {[%clk 0:02:51.3]}
7. Nf3 {[%clk 0:03:01]} 7... Nc6 {[%clk 0:02:50.5]} 8. Be3 {[%clk 0:03:01.7]}
8... f6 {[%clk 0:02:48.5]} 9. Bb5 {[%clk 0:02:55.1]} 9... fxe5 {[%clk
0:02:23.1]} 10. fxe5 {[%clk 0:02:53.7]} 10... Be7 {[%clk 0:02:20.8]} 11. O-O
{[%clk 0:02:52.8]} 11... O-O {[%clk 0:02:20.1]} 12. Bxc6 {[%clk 0:02:47.7]}
12... bxc6 {[%clk 0:02:19.7]} 13. Qe1 {[%clk 0:02:40.1]} 13... cxd4 {[%clk
0:02:17.1]} 14. Nxd4 {[%clk 0:02:39.9]} 14... Rxf1+ {[%clk 0:02:15.2]} 15. Qxf1
{[%clk 0:02:39.8]} 15... Nxe5 {[%clk 0:02:13.9]} 16. Re1 {[%clk 0:02:33]} 16...
Bf6 {[%clk 0:02:13.8]} 17. Kh1 {[%clk 0:02:23.1]} 17... Ng4 {[%clk 0:02:11.4]}
18. Bg1 {[%clk 0:02:17.3]} 18... Qd6 {[%clk 0:02:10.9]} 19. Nf3 {[%clk
0:01:52.7]} 19... e5 {[%clk 0:02:07.5]} 20. h3 {[%clk 0:01:52.7]} 20... Nh6
{[%clk 0:01:59.3]} 21. Bh2 {[%clk 0:01:49.2]} 21... Nf7 {[%clk 0:01:59.5]} 22.
Qe2 {[%clk 0:01:45.6]} 22... Bb7 {[%clk 0:01:59.2]} 23. Rd1 {[%clk 0:01:22]}
23... Qe7 {[%clk 0:01:53.2]} 24. Re1 {[%clk 0:01:12.9]} 24... e4 {[%clk
0:01:52.8]} 25. Nd2 {[%clk 0:01:06.8]} 25... Re8 {[%clk 0:01:50.6]} 26. Nf1
{[%clk 0:01:06.8]} 26... Bh4 {[%clk 0:01:44.8]} 27. Rd1 {[%clk 0:01:04.8]} 27...
Bc8 {[%clk 0:01:36.4]} 28. Ne3 {[%clk 0:01:04.3]} 28... Bf6 {[%clk 0:01:32.3]}
29. Ng4 {[%clk 0:00:59.6]} 29... Bxg4 {[%clk 0:01:28]} 30. Qxg4 {[%clk
0:01:00.5]} 30... Be5 {[%clk 0:01:23.6]} 31. Rf1 {[%clk 0:00:56.9]} 31... Bxh2
{[%clk 0:01:20]} 32. Kxh2 {[%clk 0:00:57.8]} 32... Nd6 {[%clk 0:01:13.5]} 33.
Ne2 {[%clk 0:00:55.6]} 33... d4 {[%clk 0:01:12.3]} 34. Qg3 {[%clk 0:00:44.8]}
34... c5 {[%clk 0:01:09.5]} 35. Nf4 {[%clk 0:00:42.7]} 35... Nf5 {[%clk
0:01:05.7]} 36. Qb3+ {[%clk 0:00:39.1]} 36... Kh8 {[%clk 0:01:01.6]} 37. Nd5
{[%clk 0:00:32]} 37... Qe5+ {[%clk 0:01:01.6]} 38. Kg1 {[%clk 0:00:32.8]} 38...
e3 {[%clk 0:01:01.4]} 39. Nf4 {[%clk 0:00:27.6]} 39... e2 {[%clk 0:00:57.5]} 40.
Nxe2 {[%clk 0:00:27.7]} 40... c4 {[%clk 0:00:44.8]} 41. Qf3 {[%clk 0:00:15]}
41... g6 {[%clk 0:00:45]} 42. Nf4 {[%clk 0:00:12.4]} 42... Kg7 {[%clk
0:00:42.4]} 43. Qd5 {[%clk 0:00:06.7]} 43... Qxd5 {[%clk 0:00:15.9]} 44. Nxd5
{[%clk 0:00:07.6]} 44... Re2 {[%clk 0:00:16.1]} 45. Rf2 {[%clk 0:00:07.3]} 45...
Re1+ {[%clk 0:00:15.8]} 46. Kh2 {[%clk 0:00:07.7]} 46... Ne3 {[%clk 0:00:13.4]}
47. Nxe3 {[%clk 0:00:06.1]} 47... dxe3 {[%clk 0:00:12.8]} 48. Rf4 {[%clk
0:00:06.8]} 48... c3 {[%clk 0:00:11.4]} 49. bxc3 {[%clk 0:00:06.7]} 49... Rc1
{[%clk 0:00:11]} 50. Re4 {[%clk 0:00:06.2]} 50... Rxc2 {[%clk 0:00:11.3]} 51. a4
{[%clk 0:00:04.9]} 51... Rxc3 {[%clk 0:00:10.6]} 52. Re7+ {[%clk 0:00:05.1]}
52... Kf6 {[%clk 0:00:10.8]} 53. Re8 {[%clk 0:00:04.4]} 53... h5 {[%clk
0:00:09.8]} 54. Kg3 {[%clk 0:00:04.8]} 54... Ra3 {[%clk 0:00:07.1]} 55. Kf3
{[%clk 0:00:05.1]} 55... Rxa4 {[%clk 0:00:07.2]} 56. Rxe3 {[%clk 0:00:05.5]}
56... Rb4 {[%clk 0:00:06.3]} 57. Ra3 {[%clk 0:00:05.6]} 57... Rb7 {[%clk
0:00:06.1]} 58. Ra6+ {[%clk 0:00:06.3]} 58... Kg5 {[%clk 0:00:05.1]} 59. Ra5+
{[%clk 0:00:06.5]} 59... Kh6 {[%clk 0:00:05.1]} 60. Ra6 {[%clk 0:00:06.6]} 60...
Rf7+ {[%clk 0:00:05]} 61. Kg3 {[%clk 0:00:06.7]} 61... Kg5 {[%clk 0:00:04.3]}
62. Ra5+ {[%clk 0:00:06.8]} 62... Kh6 {[%clk 0:00:04.8]} 63. Ra6 {[%clk
0:00:07.7]} 63... Kg7 {[%clk 0:00:05]} 64. Kh4 {[%clk 0:00:07.2]} 64... Rf4+
{[%clk 0:00:04.2]} 65. Kg3 {[%clk 0:00:06.2]} 65... Rf7 {[%clk 0:00:04.1]} 66.
Kh4 {[%clk 0:00:06.7]} 66... Rb7 {[%clk 0:00:04.3]} 67. Ra5 {[%clk 0:00:06]}
67... Kf6 {[%clk 0:00:03.5]} 68. Ra6+ {[%clk 0:00:05.6]} 68... Kf7 {[%clk
0:00:03.9]} 69. Kg5 {[%clk 0:00:05.5]} 69... Rb5+ {[%clk 0:00:03.6]} 70. Kh6
{[%clk 0:00:06.2]} 70... Rb2 {[%clk 0:00:01.9]} 71. Rxg6 {[%clk 0:00:06.6]}
71... a5 {[%clk 0:00:01.3]} 72. Kxh5 {[%clk 0:00:06.7]} 72... a4 {[%clk
0:00:01.2]} 73. g4 {[%clk 0:00:07.1]} 73... Ra2 {[%clk 0:00:01.4]} 74. Ra6
{[%clk 0:00:07.4]} 74... a3 {[%clk 0:00:02.3]} 75. h4 {[%clk 0:00:07.7]} 75...
Ra1 {[%clk 0:00:03.2]} 76. g5 {[%clk 0:00:07.8]} 76... a2 {[%clk 0:00:04.1]} 77.
Ra7+ {[%clk 0:00:07.7]} 77... Kg8 {[%clk 0:00:04.5]} 78. Kg6 {[%clk 0:00:07.8]}
78... Kf8 {[%clk 0:00:04.2]} 79. h5 {[%clk 0:00:08.3]} 79... Rb1 {[%clk
0:00:04.1]} 80. Ra8+ {[%clk 0:00:08.5]} 80... Ke7 {[%clk 0:00:04]} 81. Rxa2
{[%clk 0:00:09.4]} 1-0

[Event "*** SCC Grand Prix: Titled Tuesday Blitz"]
[Site "Chess.com"]
[Date "2020.08.25"]
[Round "3"]
[White "Crazy_girl99"]
[Black "crescentmoon2411"]
[Result "0-1"]
[WhiteElo "2512"]
[BlackElo "2767"]
[TimeControl "180+1"]
[EndTime "10:24:28 PDT"]
[Termination "crescentmoon2411 won by resignation"]

1. Nf3 {[%clk 0:03:00.9]} 1... Nf6 {[%clk 0:02:59.1]} 2. g3 {[%clk 0:02:59.8]}
2... d5 {[%clk 0:02:57.8]} 3. Bg2 {[%clk 0:02:59.5]} 3... c6 {[%clk 0:02:57.5]}
4. O-O {[%clk 0:02:56.9]} 4... Bg4 {[%clk 0:02:54.9]} 5. h3 {[%clk 0:02:55.7]}
5... Bxf3 {[%clk 0:02:52]} 6. Bxf3 {[%clk 0:02:55.7]} 6... e5 {[%clk 0:02:49]}
7. d3 {[%clk 0:02:55.9]} 7... Nbd7 {[%clk 0:02:46]} 8. Nd2 {[%clk 0:02:55.1]}
8... Nc5 {[%clk 0:02:40.9]} 9. Bg2 {[%clk 0:02:51.3]} 9... Ne6 {[%clk 0:02:34]}
10. e4 {[%clk 0:02:49.5]} 10... dxe4 {[%clk 0:02:31.9]} 11. dxe4 {[%clk
0:02:47.2]} 11... Bc5 {[%clk 0:02:30.1]} 12. c3 {[%clk 0:02:46.9]} 12... a5
{[%clk 0:02:29.4]} 13. Nc4 {[%clk 0:02:46.6]} 13... Qc7 {[%clk 0:02:27.8]} 14.
Bg5 {[%clk 0:02:44.1]} 14... Nxg5 {[%clk 0:02:27.2]} 0-1

[Event "*** SCC Grand Prix: Titled Tuesday Blitz"]
[Site "Chess.com"]
[Date "2020.08.25"]
[Round "3"]
[White "Siniauski"]
[Black "vvg2"]
[Result "1-0"]
[WhiteElo "2509"]
[BlackElo "2282"]
[TimeControl "180+1"]
[EndTime "10:25:02 PDT"]
[Termination "Siniauski won by resignation"]

1. e4 {[%clk 0:03:00.9]} 1... c5 {[%clk 0:03:00]} 2. Nf3 {[%clk 0:03:01.1]} 2...
Nc6 {[%clk 0:03:00.2]} 3. Bb5 {[%clk 0:03:00.9]} 3... g6 {[%clk 0:02:59.9]} 4.
Bxc6 {[%clk 0:03:00.1]} 4... bxc6 {[%clk 0:02:59.5]} 5. O-O {[%clk 0:02:58.2]}
5... Bg7 {[%clk 0:02:59.7]} 6. Re1 {[%clk 0:02:58.4]} 6... Nh6 {[%clk
0:02:59.5]} 7. c3 {[%clk 0:02:57.8]} 7... O-O {[%clk 0:02:59.6]} 8. h3 {[%clk
0:02:54.8]} 8... d6 {[%clk 0:02:51.5]} 9. d4 {[%clk 0:02:54.3]} 9... cxd4 {[%clk
0:02:51.1]} 10. cxd4 {[%clk 0:02:55.2]} 10... e5 {[%clk 0:02:46.7]} 11. dxe5
{[%clk 0:02:50.4]} 11... d5 {[%clk 0:02:41.2]} 12. exd5 {[%clk 0:02:46.1]} 12...
cxd5 {[%clk 0:02:42.1]} 13. Nc3 {[%clk 0:02:42.3]} 13... Be6 {[%clk 0:02:42]}
14. Bg5 {[%clk 0:02:36.9]} 14... Qb6 {[%clk 0:02:40.2]} 15. Qd2 {[%clk
0:02:17.5]} 15... Nf5 {[%clk 0:02:39.1]} 16. g4 {[%clk 0:02:06.4]} 1-0

[Event "*** SCC Grand Prix: Titled Tuesday Blitz"]
[Site "Chess.com"]
[Date "2020.08.25"]
[Round "3"]
[White "rugbyclub"]
[Black "Aradej"]
[Result "0-1"]
[WhiteElo "2171"]
[BlackElo "2416"]
[TimeControl "180+1"]
[EndTime "10:25:09 PDT"]
[Termination "Aradej won by resignation"]

1. c4 {[%clk 0:03:00.9]} 1... e5 {[%clk 0:02:59.5]} 2. Nc3 {[%clk 0:03:00.7]}
2... Nc6 {[%clk 0:02:59.6]} 3. Nf3 {[%clk 0:03:00.7]} 3... f5 {[%clk 0:02:59.3]}
4. d4 {[%clk 0:02:58.9]} 4... e4 {[%clk 0:02:59.3]} 5. Nd2 {[%clk 0:02:58.2]}
5... Nf6 {[%clk 0:02:57.1]} 6. e3 {[%clk 0:02:57.3]} 6... g6 {[%clk 0:02:56]} 7.
Be2 {[%clk 0:02:56.8]} 7... Bg7 {[%clk 0:02:56.2]} 8. Qb3 {[%clk 0:02:48]} 8...
O-O {[%clk 0:02:55.6]} 9. O-O {[%clk 0:02:41.6]} 9... Ne7 {[%clk 0:02:54.7]} 10.
f3 {[%clk 0:02:40.8]} 10... exf3 {[%clk 0:02:52.4]} 11. Bxf3 {[%clk 0:02:38.9]}
11... d6 {[%clk 0:02:51.6]} 12. c5+ {[%clk 0:02:05.4]} 12... d5 {[%clk
0:02:49.5]} 13. e4 {[%clk 0:02:01.6]} 13... Nxe4 {[%clk 0:02:35.1]} 14. Ndxe4
{[%clk 0:02:01]} 14... fxe4 {[%clk 0:02:35.4]} 15. Bxe4 {[%clk 0:01:59.1]} 15...
Bxd4+ {[%clk 0:02:35.4]} 0-1

[Event "*** SCC Grand Prix: Titled Tuesday Blitz"]
[Site "Chess.com"]
[Date "2020.08.25"]
[Round "3"]
[White "Gurvich_Vitaly"]
[Black "DarZay"]
[Result "1-0"]
[WhiteElo "2588"]
[BlackElo "2320"]
[TimeControl "180+1"]
[EndTime "10:25:14 PDT"]
[Termination "Gurvich_Vitaly won by checkmate"]

1. e4 {[%clk 0:02:58.4]} 1... e5 {[%clk 0:03:00]} 2. Nf3 {[%clk 0:02:54.3]} 2...
Nc6 {[%clk 0:03:00.1]} 3. Bb5 {[%clk 0:02:53.6]} 3... a6 {[%clk 0:02:55.3]} 4.
Bxc6 {[%clk 0:02:53.3]} 4... dxc6 {[%clk 0:02:52]} 5. O-O {[%clk 0:02:54.2]}
5... Bd6 {[%clk 0:02:48.5]} 6. d4 {[%clk 0:02:53.9]} 6... exd4 {[%clk
0:02:48.3]} 7. Qxd4 {[%clk 0:02:54.8]} 7... Qf6 {[%clk 0:02:47.5]} 8. e5 {[%clk
0:02:50.5]} 8... c5 {[%clk 0:02:47.6]} 9. Qe3 {[%clk 0:02:47.5]} 9... Bxe5
{[%clk 0:02:44.8]} 10. Nxe5 {[%clk 0:02:47.5]} 10... Be6 {[%clk 0:02:45.1]} 11.
Qxc5 {[%clk 0:02:47]} 11... O-O-O {[%clk 0:02:44.6]} 12. Nc3 {[%clk 0:02:30.8]}
12... Kb8 {[%clk 0:02:40.5]} 13. Bg5 {[%clk 0:02:21.4]} 13... Rd5 {[%clk
0:02:29.8]} 14. Nxd5 {[%clk 0:02:18.7]} 14... Qxg5 {[%clk 0:02:29.8]} 15. Qxc7+
{[%clk 0:02:18.2]} 15... Ka8 {[%clk 0:02:28]} 16. Nc6 {[%clk 0:02:14.8]} 16...
bxc6 {[%clk 0:02:17.4]} 17. Nb6# {[%clk 0:02:15.7]} 1-0

[Event "*** SCC Grand Prix: Titled Tuesday Blitz"]
[Site "Chess.com"]
[Date "2020.08.25"]
[Round "3"]
[White "creativity"]
[Black "Karina_Ivanova"]
[Result "1-0"]
[WhiteElo "2023"]
[BlackElo "2260"]
[TimeControl "180+1"]
[EndTime "10:25:28 PDT"]
[Termination "creativity won by resignation"]

1. d4 {[%clk 0:02:59.1]} 1... Nf6 {[%clk 0:02:59.6]} 2. c4 {[%clk 0:02:54.3]}
2... e6 {[%clk 0:03:00.5]} 3. Nc3 {[%clk 0:02:53.1]} 3... Bb4 {[%clk 0:02:59.8]}
4. Qc2 {[%clk 0:02:52.4]} 4... c5 {[%clk 0:02:59.4]} 5. dxc5 {[%clk 0:02:51.1]}
5... Bxc5 {[%clk 0:02:58.9]} 6. Nf3 {[%clk 0:02:43.3]} 6... a6 {[%clk
0:02:57.7]} 7. g3 {[%clk 0:02:30.7]} 7... Qc7 {[%clk 0:02:56.3]} 8. Bg2 {[%clk
0:02:29.8]} 8... b6 {[%clk 0:02:53.3]} 9. Bf4 {[%clk 0:02:24.5]} 9... d6 {[%clk
0:02:40.1]} 10. a3 {[%clk 0:02:13.3]} 10... a5 {[%clk 0:02:37.6]} 11. O-O {[%clk
0:02:09]} 11... Bb7 {[%clk 0:02:36.2]} 12. Rad1 {[%clk 0:01:59.6]} 12... O-O
{[%clk 0:02:31.9]} 13. Nb5 {[%clk 0:01:59]} 13... Qc6 {[%clk 0:02:29.3]} 14.
Bxd6 {[%clk 0:01:50.8]} 14... Qxd6 {[%clk 0:02:27.3]} 15. Nxd6 {[%clk
0:01:50.1]} 1-0